fUST/lending_fUST_20241026
["ID","MTS","AMOUNT","RATE_DAILY","PERIOD"]
[340827909,1729888241135,-151.0,0.00011999,2]
[340827911,1729888241145,-151.0,0.00011999,2]
[340827913,1729888241154,-151.0,0.00011999,2]
[340827915,1729888241163,-151.0,0.00011999,2]
[340827917,1729888241173,-151.0,0.00011999,2]
[340827919,1729888241182,-151.0,0.00011999,2]
[340827922,1729888241192,-217.106053,0.00011999,2]
[340827924,1729888241201,-217.106053,0.00011999,2]
[340827926,1729888241210,-217.106053,0.00011999,2]
[340827928,1729888241220,-165.194476,0.00011999,2]
[340827930,1729888241229,-165.194476,0.00011999,2]
[340827932,1729888241239,-165.194476,0.00011999,2]
[340827934,1729888241252,-165.194476,0.00011999,2]
[340827936,1729888241261,-165.194476,0.00011999,2]
[340827939,1729888241273,-165.194476,0.00011999,2]
[340827941,1729888241283,-151.0,0.00011999,2]
[340827943,1729888241294,-151.0,0.00011999,2]
[340827945,1729888241305,-151.0,0.00011999,2]
[340827947,1729888241315,-151.0,0.00011999,2]
[340827949,1729888241325,-151.0,0.00011999,2]
[340827951,1729888241335,-151.0,0.00011999,2]
[340827953,1729888241344,-151.0,0.00011999,2]
[340827956,1729888241353,-151.0,0.00011999,2]
[340827957,1729888241363,-151.0,0.00011999,2]
[340827959,1729888241373,-151.0,0.00011999,2]
[340827961,1729888241383,-151.0,0.00011999,2]
[340827963,1729888241392,-151.0,0.00011999,2]
[340827966,1729888241402,-151.0,0.00011999,2]
[340827968,1729888241414,-1214.924591,0.00011999,2]
[340827970,1729888241424,-1214.924591,0.00011999,2]
[340827972,1729888241434,-1214.924591,0.00011999,2]
[340827974,1729888241444,-1214.924591,0.00011999,2]
[340827976,1729888241454,-1214.924591,0.00011999,2]
[340827978,1729888241463,-1214.924591,0.00011999,2]
[340827980,1729888241473,-1165.408856,0.00011999,2]
[340827982,1729888241482,-1214.924591,0.00011999,2]
[340827984,1729888241492,-1165.408856,0.00011999,2]
[340827986,1729888241504,-1214.924591,0.00011999,2]
[340827988,1729888241513,-1165.408856,0.00011999,2]
[340827990,1729888241524,-1165.408856,0.00011999,2]
[340827992,1729888241533,-1165.408856,0.00011999,2]
[340827994,1729888241543,-1165.408856,0.00011999,2]
[340827996,1729888241554,-1165.408856,0.00011999,2]
[340827998,1729888241563,-1165.408856,0.00011999,2]
[340828000,1729888241573,-151.0,0.00011999,2]
[340828002,1729888241583,-151.0,0.00011999,2]
[340828004,1729888241596,-151.0,0.00011999,2]
[340828006,1729888241605,-151.0,0.00011999,2]
[340828009,1729888241615,-151.0,0.00011999,2]
[340828011,1729888241624,-334.282618,0.00011999,2]
[340828013,1729888241634,-334.282618,0.00011999,2]
[340828015,1729888241645,-151.0,0.00011999,2]
[340828017,1729888241655,-334.282618,0.00011999,2]
[340828019,1729888241667,-196.127807,0.00011999,2]
[340828021,1729888241677,-174.215084,0.00011999,2]
[340828023,1729888241686,-174.215084,0.00011999,2]
[340828025,1729888241695,-334.282618,0.00011999,2]
[340828027,1729888241705,-174.215084,0.00011999,2]
[340828029,1729888241715,-334.282618,0.00011999,2]
[340828031,1729888241724,-174.215084,0.00011999,2]
[340828033,1729888241733,-334.282618,0.00011999,2]
[340828035,1729888241743,-174.215084,0.00011999,2]
[340828037,1729888241754,-174.215084,0.00011999,2]
[340828039,1729888241763,-174.215084,0.00011999,2]
[340828041,1729888241772,-174.215084,0.00011999,2]
[340828043,1729888241782,-151.0,0.00011999,2]
[340828045,1729888241791,-151.0,0.00011999,2]
[340828047,1729888241800,-151.0,0.00011999,2]
[340828049,1729888241810,-151.0,0.00011999,2]
[340828051,1729888241819,-151.0,0.00011999,2]
[340828053,1729888241828,-151.0,0.00011999,2]
[340828055,1729888241837,-151.0,0.00011999,2]
[340828057,1729888241847,-151.0,0.00011999,2]
[340828059,1729888241857,-151.0,0.00011999,2]
[340828061,1729888241866,-151.0,0.00011999,2]
[340828063,1729888241875,-151.0,0.00011999,2]
[340828066,1729888241885,-151.0,0.00011999,2]
[340828068,1729888241894,-151.0,0.00011999,2]
[340828069,1729888241903,-151.0,0.00011999,2]
[340828071,1729888241912,-151.0,0.00011999,2]
[340828073,1729888241921,-151.0,0.00011999,2]
[340828076,1729888241931,-151.0,0.00011999,2]
[340828077,1729888241940,-151.0,0.00011999,2]
[340828080,1729888241950,-151.0,0.00011999,2]
[340828081,1729888241959,-194.124238,0.00011999,2]
[340828083,1729888241968,-151.0,0.00011999,2]
[340828086,1729888241977,-151.0,0.00011999,2]
[340828088,1729888241986,-151.0,0.00011999,2]
[340828090,1729888241996,-151.0,0.00011999,2]
[340828092,1729888242006,-151.0,0.00011999,2]
[340828094,1729888242015,-151.0,0.00011999,2]
[340828096,1729888242024,-151.0,0.00011999,2]
[340828098,1729888242033,-254.274751,0.00011999,2]
[340828100,1729888242043,-151.0,0.00011999,2]
[340828102,1729888242052,-151.0,0.00011999,2]
[340828104,1729888242061,-151.0,0.00011999,2]
[340828106,1729888242070,-151.0,0.00011999,2]
[340828108,1729888242079,-151.0,0.00011999,2]
[340828110,1729888242088,-151.0,0.00011999,2]
[340828112,1729888242098,-193.768449,0.00011999,2]
[340828114,1729888242107,-151.0,0.00011999,2]
[340828116,1729888242116,-151.0,0.00011999,2]
[340828118,1729888242126,-151.0,0.00011999,2]
[340828120,1729888242136,-151.0,0.00011999,2]
[340828122,1729888242145,-151.0,0.00011999,2]
[340828124,1729888242154,-151.0,0.00011999,2]
[340828126,1729888242163,-151.0,0.00011999,2]
[340828128,1729888242173,-151.0,0.00011999,2]
[340828130,1729888242182,-151.0,0.00011999,2]
[340828132,1729888242191,-181.730695,0.00011999,2]
[340828134,1729888242201,-151.0,0.00011999,2]
[340828135,1729888242210,-151.0,0.00011999,2]
[340828136,1729888242219,-220.14949,0.00011999,2]
[340828137,1729888242228,-151.0,0.00011999,2]
[340828138,1729888242237,-220.14949,0.00011999,2]
[340828139,1729888242247,-151.0,0.00011999,2]
[340828140,1729888242258,-220.14949,0.00011999,2]
[340828141,1729888242268,-220.14949,0.00011999,2]
[340828142,1729888242277,-220.14949,0.00011999,2]
[340828143,1729888242286,-220.14949,0.00011999,2]
[340828145,1729888242295,-220.14949,0.00011999,2]
[340828147,1729888242304,-220.14949,0.00011999,2]
[340828149,1729888242313,-781.024918,0.00011999,2]
[340828151,1729888242322,-781.024918,0.00011999,2]
[340828153,1729888242331,-781.024918,0.00011999,2]
[340828155,1729888242341,-781.024918,0.00011999,2]
[340828157,1729888242350,-781.024918,0.00011999,2]
[340828159,1729888242360,-781.024918,0.00011999,2]
[340828161,1729888242369,-781.024918,0.00011999,2]
[340828163,1729888242378,-781.024918,0.00011999,2]
[340828165,1729888242387,-781.024918,0.00011999,2]
[340828167,1729888242396,-249.752165,0.00011999,2]
[340828169,1729888242405,-249.752165,0.00011999,2]
[340828171,1729888242415,-781.024918,0.00011999,2]
[340828173,1729888242424,-249.752165,0.00011999,2]
[340828175,1729888242432,-249.752165,0.00011999,2]
[340828177,1729888242442,-249.752165,0.00011999,2]
[340828179,1729888242451,-249.752165,0.00011999,2]
[340828181,1729888242460,-249.752165,0.00011999,2]
[340828183,1729888242469,-249.752165,0.00011999,2]
[340828185,1729888242479,-249.752165,0.00011999,2]
[340828187,1729888242488,-249.752165,0.00011999,2]
[340828189,1729888242497,-249.752165,0.00011999,2]
[340828191,1729888242509,-249.752165,0.00011999,2]
[340828193,1729888242518,-249.752165,0.00011999,2]
[340828195,1729888242527,-249.752165,0.00011999,2]
[340828197,1729888242536,-249.752165,0.00011999,2]
[340828199,1729888242546,-249.752165,0.00011999,2]
[340828202,1729888242555,-249.752165,0.00011999,2]
[340828204,1729888242564,-249.752157,0.00011999,2]
[340828206,1729888242573,-247.759685,0.00011999,2]
[340828208,1729888242583,-247.759685,0.00011999,2]
[340828210,1729888242598,-247.759685,0.00011999,2]
[340828212,1729888242607,-247.759685,0.00011999,2]
[340828214,1729888242616,-247.759685,0.00011999,2]
[340828216,1729888242626,-247.759685,0.00011999,2]
[340828218,1729888242636,-247.759685,0.00011999,2]
[340828220,1729888242646,-247.759685,0.00011999,2]
[340828222,1729888242655,-247.759685,0.00011999,2]
[340828224,1729888242665,-247.759685,0.00011999,2]
[340828226,1729888242676,-247.759685,0.00011999,2]
[340828228,1729888242685,-247.759685,0.00011999,2]
[340828230,1729888242695,-247.759685,0.00011999,2]
[340828232,1729888242704,-247.759685,0.00011999,2]
[340828234,1729888242714,-247.759685,0.00011999,2]
[340828236,1729888242723,-247.759685,0.00011999,2]
[340828238,1729888242734,-247.759685,0.00011999,2]
[340828240,1729888242744,-247.759685,0.00011999,2]
[340828243,1729888242755,-402.63862,0.00011999,2]
[340828245,1729888242765,-402.63862,0.00011999,2]
[340828247,1729888242774,-402.63862,0.00011999,2]
[340828249,1729888242784,-402.63862,0.00011999,2]
[340828251,1729888242794,-402.63862,0.00011999,2]
[340828255,1729888242803,-402.63862,0.00011999,2]
[340828258,1729888242812,-402.63862,0.00011999,2]
[340828262,1729888242822,-402.63862,0.00011999,2]
[340828265,1729888242831,-402.63862,0.00011999,2]
[340828267,1729888242841,-402.63862,0.00011999,2]
[340828269,1729888242850,-402.63862,0.00011999,2]
[340828271,1729888242859,-402.63862,0.00011999,2]
[340828273,1729888242869,-402.63862,0.00011999,2]
[340828275,1729888242878,-402.63862,0.00011999,2]
[340828277,1729888242887,-402.63862,0.00011999,2]
[340828279,1729888242896,-402.63862,0.00011999,2]
[340828281,1729888242905,-402.63862,0.00011999,2]
[340828283,1729888242914,-402.638621,0.00011999,2]
[340828285,1729888242923,-603.032149,0.00011999,2]
[340828287,1729888242932,-603.032149,0.00011999,2]
[340828289,1729888242942,-603.032149,0.00011999,2]
[340828291,1729888242951,-603.032149,0.00011999,2]
[340828293,1729888242960,-603.032149,0.00011999,2]
[340828294,1729888242970,-603.032149,0.00011999,2]
[340828296,1729888242980,-603.032149,0.00011999,2]
[340828298,1729888242989,-603.032149,0.00011999,2]
[340828300,1729888242999,-603.032149,0.00011999,2]
[340828302,1729888243009,-603.032149,0.00011999,2]
[340828304,1729888243019,-603.032149,0.00011999,2]
[340828306,1729888243028,-603.032149,0.00011999,2]
[340828308,1729888243038,-603.032149,0.00011999,2]
[340828311,1729888243047,-603.032149,0.00011999,2]
[340828313,1729888243056,-603.032149,0.00011999,2]
[340828314,1729888243065,-603.032149,0.00011999,2]
[340828316,1729888243074,-603.032149,0.00011999,2]
[340828318,1729888243084,-603.032148,0.00011999,2]
[340828320,1729888243093,-2554.705321,0.00011999,2]
[340828322,1729888243102,-2554.705321,0.00011999,2]
[340828324,1729888243111,-2554.705321,0.00011999,2]
[340828327,1729888243120,-2554.705321,0.00011999,2]
[340828329,1729888243130,-2554.705321,0.00011999,2]
[340828331,1729888243139,-2554.705321,0.00011999,2]
[340828333,1729888243148,-2554.705321,0.00011999,2]
[340828335,1729888243157,-2554.705321,0.00011999,2]
[340828337,1729888243166,-2554.705321,0.00011999,2]
[340828339,1729888243175,-2554.705321,0.00011999,2]
[340828341,1729888243184,-2554.705321,0.00011999,2]
[340828343,1729888243194,-2554.705321,0.00011999,2]
[340828346,1729888243210,-2864.51426,0.00011999,2]
[340828348,1729888243224,-2554.705321,0.00011999,2]
[340828351,1729888243237,-2864.51426,0.00011999,2]
[340828353,1729888243250,-2554.705321,0.00011999,2]
[340828355,1729888243260,-2864.51426,0.00011999,2]
[340828357,1729888243270,-2554.705321,0.00011999,2]
[340828359,1729888243281,-2864.51426,0.00011999,2]
[340828361,1729888243291,-2554.705321,0.00011999,2]
[340828363,1729888243301,-2864.51426,0.00011999,2]
[340828365,1729888243310,-2554.705321,0.00011999,2]
[340828368,1729888243322,-2554.705314,0.00011999,2]
[340828370,1729888243333,-2864.51426,0.00011999,2]
[340828372,1729888243345,-2864.51426,0.00011999,2]
[340828374,1729888243355,-2864.51426,0.00011999,2]
[340828376,1729888243365,-2864.51426,0.00011999,2]
[340828378,1729888243375,-2864.51426,0.00011999,2]
[340828381,1729888243385,-151.0,0.00011999,2]
[340828383,1729888243395,-687.88157,0.00011999,2]
[340828385,1729888243405,-151.0,0.00011999,2]
[340828387,1729888243416,-687.88157,0.00011999,2]
[340828389,1729888243426,-687.88157,0.00011999,2]
[340828391,1729888243435,-151.0,0.00011999,2]
[340828393,1729888243445,-151.0,0.00011999,2]
[340828395,1729888243455,-687.88157,0.00011999,2]
[340828397,1729888243465,-151.0,0.00011999,2]
[340828400,1729888243475,-687.88157,0.00011999,2]
[340828402,1729888243485,-151.0,0.00011999,2]
[340828404,1729888243495,-946.764842,0.00011999,2]
[340828406,1729888243506,-687.88157,0.00011999,2]
[340828408,1729888243516,-151.0,0.00011999,2]
[340828410,1729888243525,-946.764842,0.00011999,2]
[340828412,1729888243535,-151.0,0.00011999,2]
[340828414,1729888243545,-687.88157,0.00011999,2]
[340828416,1729888243555,-946.764842,0.00011999,2]
[340828418,1729888243567,-151.0,0.00011999,2]
[340828420,1729888243577,-946.764842,0.00011999,2]
[340828422,1729888243589,-687.88157,0.00011999,2]
[340828424,1729888243599,-946.764842,0.00011999,2]
[340828426,1729888243609,-687.88157,0.00011999,2]
[340828429,1729888243620,-151.0,0.00011999,2]
[340828431,1729888243630,-946.764842,0.00011999,2]
[340828433,1729888243641,-151.0,0.00011999,2]
[340828435,1729888243651,-946.764842,0.00011999,2]
[340828437,1729888243661,-687.88157,0.00011999,2]
[340828439,1729888243674,-151.0,0.00011999,2]
[340828441,1729888243685,-687.88157,0.00011999,2]
[340828443,1729888243695,-151.0,0.00011999,2]
[340828445,1729888243705,-687.88157,0.00011999,2]
[340828447,1729888243715,-687.88157,0.00011999,2]
[340828449,1729888243726,-213.056149,0.00011999,2]
[340828452,1729888243736,-687.88157,0.00011999,2]
[340828454,1729888243746,-687.88157,0.00011999,2]
[340828456,1729888243759,-946.764842,0.00011999,2]
[340828458,1729888243769,-687.88157,0.00011999,2]
[340828460,1729888243778,-946.764842,0.00011999,2]
[340828462,1729888243789,-687.88157,0.00011999,2]
[340828464,1729888243799,-946.764842,0.00011999,2]
[340828466,1729888243810,-687.88158,0.00011999,2]
[340828468,1729888243819,-946.764842,0.00011999,2]
[340828470,1729888243834,-946.764842,0.00011999,2]
[340828473,1729888243844,-946.764842,0.00011999,2]
[340828475,1729888243854,-946.764844,0.00011999,2]
[340828476,1729888243863,-394.63081373,0.0001231,2]
[340828477,1729888243874,-394.63081372,0.00012314,2]
[340828478,1729888243883,-151.0,0.00012314,2]
[340828479,1729888243893,-151.0,0.00012314,2]
[340828480,1729888243903,-151.0,0.00012314,2]
[340828481,1729888243913,-781.024918,0.00012314,2]
[340828482,1729888243923,-781.024918,0.00012314,2]
[340828485,1729888243933,-2864.51426,0.00012314,2]
[340828487,1729888243943,-2864.51426,0.00012314,2]
[340828488,1729888243952,-394.63081372,0.00012318,2]
[340828491,1729888243962,-394.63081372,0.00012322,2]
[340828492,1729888243971,-394.63081372,0.00012326,2]
[340828494,1729888243981,-108215.126081,0.000124,2]
[340828496,1729888243991,-23960.32766361,0.000124,2]
[340828528,1729888244284,-1167.49999999,0.000124,2]
[340828700,1729888393754,23255.0142573,0.00010444,2]
[340828701,1729888477190,175.722848,0.00010888,2]
[340828702,1729888477431,175.722848,0.00010897,2]
[340828703,1729888477638,175.722848,0.00010906,2]
[340828704,1729888477855,175.722848,0.00010915,2]
[340828705,1729888478057,175.722848,0.00010925,2]
[340828706,1729888478533,175.722848,0.00010934,2]
[340828707,1729888478739,175.722848,0.00010943,2]
[340828945,1729889432387,-176.604206,0.00011224,2]
[340828948,1729889432397,-176.604206,0.00011517,2]
[340828950,1729889432406,-113.89088799,0.00011617,2]
[340828952,1729889432419,-37.10911201,0.00011617,2]
[340828954,1729889432428,-151.0,0.00011617,2]
[340828956,1729889432437,-151.0,0.00011647,2]
[340828958,1729889432447,-151.0,0.00011647,2]
[340828960,1729889432461,-151.0,0.00011647,2]
[340828962,1729889432473,-151.0,0.00011647,2]
[340828964,1729889432483,-151.0,0.00011647,2]
[340828966,1729889432492,-151.0,0.00011647,2]
[340828968,1729889432501,-176.604206,0.00011809,2]
[340828970,1729889432513,-180.0,0.00011998,2]
[340828972,1729889432525,-300.0,0.00011998,2]
[340828973,1729889432534,-151.0,0.00011999,2]
[340828975,1729889432544,-151.0,0.00011999,2]
[340828977,1729889432554,-151.0,0.00011999,2]
[340828979,1729889432563,-151.0,0.00011999,2]
[340828981,1729889432572,-151.0,0.00011999,2]
[340828982,1729889432582,-213.98095407,0.00012051,2]
[340828984,1729889432591,-307.19164541,0.00012151,2]
[340828987,1729889432611,-8588.22047946,0.00012151,2]
[340828989,1729889432621,-394.63081373,0.000123,2]
[340828990,1729889432631,-394.63081372,0.00012303,2]
[340828992,1729889432640,-394.63081372,0.00012305,2]
[340828994,1729889432650,-394.63081372,0.00012308,2]
[340828996,1729889432659,-394.63081372,0.0001231,2]
[340828998,1729889432669,-502.66422629,0.00012373,2]
[340829000,1729889432678,-500.0,0.00012373,2]
[340829001,1729889432688,-412.63495483,0.00012399,2]
[340829003,1729889432698,-2399.83120186,0.00012399,2]
[340829018,1729889438524,-213.98095406,0.000122,2]
[340829019,1729889438533,-162.43442504,0.000124,2]
[340829020,1729889438689,-348.96860692,0.000124,2]
[340829021,1729889438699,-17343.47667524,0.000124,2]
[340829082,1729889440530,-126943.35809876,0.000124,2]
[340829085,1729889440539,-162371.17363773,0.000124,2]
[340829259,1729889443585,-879.24848131,0.000124,2]
[340829271,1729889446436,-12146.32937103,0.00012399,2]
[340829272,1729889446445,-1226.27062897,0.000124,2]
[340829273,1729889446457,-371.65638726,0.000124,2]
[340829274,1729889626371,102756.1563813,0.0001,2]
[340829279,1729890467823,23758.3420485,0.0001084,2]
[340829312,1729890632527,-161.246155,0.00011091,2]
[340829314,1729890632537,-161.246155,0.00011122,2]
[340829316,1729890632546,-161.246155,0.00011152,2]
[340829318,1729890632556,-161.246155,0.00011182,2]
[340829320,1729890632565,-161.246155,0.00011213,2]
[340829322,1729890632575,-161.246155,0.00011243,2]
[340829324,1729890632584,-161.246155,0.00011274,2]
[340829326,1729890632593,-161.246155,0.00011304,2]
[340829329,1729890632604,-161.246155,0.00011335,2]
[340829331,1729890632613,-161.246155,0.00011365,2]
[340829333,1729890632623,-161.246155,0.00011395,2]
[340829335,1729890632632,-161.246155,0.00011426,2]
[340829337,1729890632641,-161.246155,0.00011456,2]
[340829339,1729890632650,-161.246155,0.00011487,2]
[340829341,1729890632659,-161.246155,0.00011517,2]
[340829343,1729890632668,-161.246155,0.00011547,2]
[340829345,1729890632676,-161.246155,0.00011578,2]
[340829347,1729890632686,-161.246155,0.00011608,2]
[340829349,1729890632695,-161.246155,0.00011639,2]
[340829351,1729890632704,-161.246155,0.00011669,2]
[340829353,1729890632716,-300.0,0.00012107,2]
[340829355,1729890632725,-300.0,0.00012107,2]
[340829357,1729890632735,-111.37156267,0.00012108,2]
[340829454,1729890638950,-8784.0405622,0.00012108,2]
[340829455,1729890638960,-157.82250347,0.0001227,2]
[340829457,1729890638971,-157.82250347,0.0001231,2]
[340829459,1729890638981,-340.93535464,0.0001236,2]
[340829461,1729890638991,-18272.56651219,0.0001236,2]
[340829500,1729890640624,-192954.64264681,0.0001236,2]
[340829501,1729890640636,-70409.0697195,0.0001237,2]
[340829502,1729890640647,-500.0,0.00012373,2]
[340829503,1729890640656,-602.41497244,0.00012373,2]
[340829504,1729890640669,-500.0,0.00012373,2]
[340829505,1729890640680,-500.0,0.00012373,2]
[340829506,1729890640690,-500.0,0.00012373,2]
[340829507,1729890640699,-500.0,0.00012373,2]
[340829508,1729890640709,-502.6661399,0.00012373,2]
[340829509,1729890640720,-500.0,0.00012373,2]
[340829510,1729890640730,-500.28355097,0.00012373,2]
[340829511,1729890640739,-574.467468,0.0001238,2]
[340829512,1729890640748,-574.467468,0.0001238,2]
[340829513,1729890640758,-151.0,0.0001238,2]
[340829514,1729890640767,-362.374758,0.0001238,2]
[340829515,1729890640777,-295.93301,0.0001238,2]
[340829516,1729890640786,-295.93301,0.0001238,2]
[340829517,1729890640794,-362.374758,0.0001238,2]
[340829518,1729890640803,-151.0,0.0001238,2]
[340829519,1729890640813,-196.842355,0.0001238,2]
[340829520,1729890640822,-196.842355,0.0001238,2]
[340829521,1729890640831,-151.0,0.0001238,2]
[340829522,1729890640841,-312.409967,0.0001238,2]
[340829523,1729890640850,-312.409967,0.0001238,2]
[340829524,1729890640860,-239.586058,0.0001238,2]
[340829525,1729890640870,-151.0,0.0001238,2]
[340829526,1729890640880,-151.0,0.0001238,2]
[340829527,1729890640889,-151.0,0.0001238,2]
[340829528,1729890640898,-151.0,0.0001238,2]
[340829529,1729890640907,-151.0,0.0001238,2]
[340829530,1729890640917,-151.0,0.0001238,2]
[340829531,1729890640926,-151.0,0.0001238,2]
[340829532,1729890640935,-2578.062834,0.0001238,2]
[340829533,1729890640945,-2578.062834,0.0001238,2]
[340829534,1729890640954,-151.0,0.0001238,2]
[340829535,1729890640964,-151.0,0.0001238,2]
[340829536,1729890640974,-151.0,0.0001238,2]
[340829537,1729890640983,-284.020599,0.0001238,2]
[340829538,1729890640992,-284.020599,0.0001238,2]
[340829539,1729890641002,-2299.234789,0.0001238,2]
[340829540,1729890641011,-2299.234789,0.0001238,2]
[340829541,1729890641021,-151.0,0.0001238,2]
[340829542,1729890641030,-574.467468,0.00012381,2]
[340829543,1729890641040,-574.467468,0.00012381,2]
[340829544,1729890641050,-151.0,0.00012381,2]
[340829545,1729890641060,-362.374758,0.00012381,2]
[340829546,1729890641069,-295.93301,0.00012381,2]
[340829547,1729890641079,-295.93301,0.00012381,2]
[340829548,1729890641088,-362.374758,0.00012381,2]
[340829549,1729890641098,-151.0,0.00012381,2]
[340829550,1729890641108,-196.842355,0.00012381,2]
[340829551,1729890641118,-196.842355,0.00012381,2]
[340829552,1729890641343,-151.0,0.00012381,2]
[340829553,1729890641354,-312.409967,0.00012381,2]
[340829554,1729890641363,-312.409967,0.00012381,2]
[340829555,1729890641372,-151.0,0.00012381,2]
[340829556,1729890641382,-155.578976,0.00012381,2]
[340829557,1729890641391,-151.0,0.00012381,2]
[340829558,1729890641400,-151.0,0.00012381,2]
[340829559,1729890641410,-151.0,0.00012381,2]
[340829560,1729890641418,-488.54299687,0.00012381,2]
[340829566,1729890643679,-2083.40276057,0.00012381,2]
[340829572,1729891405126,250.0,0.00010791,2]
[340829573,1729891469387,9872.4264891,0.0001088,2]
[340829630,1729891831630,-157.683746,0.00011288,2]
[340829631,1729891831640,-157.683746,0.00011319,2]
[340829632,1729891831650,-143.62742742,0.0001135,2]
[340829633,1729891831662,-14.05631858,0.0001135,2]
[340829634,1729891831673,-157.683746,0.00011381,2]
[340829635,1729891831682,-157.683746,0.00011412,2]
[340829636,1729891831692,-157.683746,0.00011443,2]
[340829637,1729891831701,-157.683746,0.00011474,2]
[340829638,1729891831711,-21.26869742,0.00011504,2]
[340829639,1729891831722,-136.41504858,0.00011504,2]
[340829640,1729891831731,-157.683746,0.00011535,2]
[340829641,1729891831740,-157.683746,0.00011566,2]
[340829642,1729891831750,-157.683746,0.00011597,2]
[340829643,1729891831759,-157.683746,0.00011628,2]
[340829644,1729891831769,-157.683746,0.00011659,2]
[340829645,1729891831778,-157.683746,0.0001169,2]
[340829646,1729891831787,-157.683746,0.00011721,2]
[340829647,1729891831800,-157.683746,0.00011752,2]
[340829648,1729891831809,-157.683746,0.00011783,2]
[340829649,1729891831819,-157.683746,0.00011814,2]
[340829650,1729891831828,-157.683746,0.00011845,2]
[340829651,1729891831839,-157.683746,0.00011876,2]
[340829652,1729891831848,-300.0,0.00012155,2]
[340829653,1729891831858,-76.86827719,0.00012156,2]
[340829654,1729891831870,-5470.33430858,0.00012156,2]
[340829655,1729891831890,-3348.2095391,0.00012156,2]
[340829656,1729891831900,-245.8216,0.00012338,2]
[340829657,1729891831909,-151.0,0.00012381,2]
[340829658,1729891831919,-151.0,0.00012381,2]
[340829659,1729891831929,-151.0,0.0001239,2]
[340829660,1729891831939,-151.0,0.0001239,2]
[340829661,1729891831949,-151.0,0.0001239,2]
[340829662,1729891831959,-200.67851181,0.00012399,2]
[340829666,1729891837960,-8539.19238431,0.00012399,2]
[340829667,1729891837969,-151.0,0.00012399,2]
[340829668,1729891837978,-151.0,0.000124,2]
[340829669,1729891837988,-151.0,0.000124,2]
[340829670,1729891837997,-151.0,0.000124,2]
[340829671,1729891838007,-151.0,0.000124,2]
[340829672,1729891838016,-151.0,0.000124,2]
[340829673,1729891838025,-151.0,0.0001241,2]
[340829674,1729891838034,-151.0,0.0001241,2]
[340829675,1729891838043,-158.733515,0.0001241,2]
[340829676,1729891838062,-151.0,0.0001241,2]
[340829677,1729891838073,-151.0,0.0001241,2]
[340829678,1729891838084,-151.0,0.0001241,2]
[340829679,1729891838093,-151.0,0.0001241,2]
[340829680,1729891838103,-151.0,0.0001241,2]
[340829681,1729891838113,-151.0,0.0001241,2]
[340829682,1729891838122,-151.0,0.0001241,2]
[340829683,1729891838132,-299.636898,0.0001241,2]
[340829684,1729891838141,-151.0,0.0001241,2]
[340829685,1729891838151,-151.0,0.0001241,2]
[340829686,1729891838161,-633.844837,0.0001241,2]
[340829687,1729891838170,-151.0,0.0001241,2]
[340829688,1729891838181,-151.0,0.0001241,2]
[340829689,1729891838191,-633.844837,0.0001241,2]
[340829690,1729891838201,-152.306952,0.0001241,2]
[340829691,1729891838211,-151.0,0.0001241,2]
[340829692,1729891838221,-151.0,0.0001241,2]
[340829693,1729891838231,-151.0,0.0001241,2]
[340829694,1729891838241,-151.0,0.0001241,2]
[340829695,1729891838251,-502.6661399,0.0001255,2]
[340829696,1729891838260,-316.17137826,0.00012842,2]